[Event "*** Titled Tuesday Blitz"]
[Site "Chess.com"]
[Date "2020.11.24"]
[Round "5"]
[White "DenisQ"]
[Black "smshk35"]
[Result "1-0"]
[WhiteElo "2676"]
[BlackElo "2481"]
[TimeControl "180+1"]
[EndTime "11:11:33 PST"]
[Termination "DenisQ won by resignation"]

1. Nf3 {[%clk 0:03:00.9]} 1... Nf6 {[%clk 0:02:59.2]} 2. c4 {[%clk 0:02:58.5]}
2... b6 {[%clk 0:02:56.6]} 3. g3 {[%clk 0:02:57.3]} 3... Bb7 {[%clk 0:02:56.5]}
4. Bg2 {[%clk 0:02:57.5]} 4... g6 {[%clk 0:02:55.4]} 5. O-O {[%clk 0:02:57.2]}
5... Bg7 {[%clk 0:02:55.7]} 6. Nc3 {[%clk 0:02:57.2]} 6... O-O {[%clk
0:02:55.6]} 7. Qc2 {[%clk 0:02:54.4]} 7... c5 {[%clk 0:02:53.6]} 8. e4 {[%clk
0:02:48.3]} 8... Nc6 {[%clk 0:02:50.7]} 9. d3 {[%clk 0:02:48.3]} 9... Nd4 {[%clk
0:02:44.5]} 10. Nxd4 {[%clk 0:02:46.7]} 10... cxd4 {[%clk 0:02:45.4]} 11. Nd5
{[%clk 0:02:35.9]} 11... e6 {[%clk 0:02:20.8]} 12. Nxf6+ {[%clk 0:02:34.1]}
12... Bxf6 {[%clk 0:02:21.7]} 13. Bh6 {[%clk 0:02:32]} 13... Bg7 {[%clk
0:02:21.1]} 14. Bxg7 {[%clk 0:02:31.8]} 14... Kxg7 {[%clk 0:02:22]} 15. f4
{[%clk 0:02:26.1]} 15... d6 {[%clk 0:02:20.1]} 16. Qf2 {[%clk 0:02:15.9]} 16...
e5 {[%clk 0:02:17.9]} 17. f5 {[%clk 0:02:15.7]} 17... f6 {[%clk 0:02:16.9]} 18.
h4 {[%clk 0:02:13.2]} 18... Rc8 {[%clk 0:02:00.3]} 19. a4 {[%clk 0:02:10.3]}
19... Rc7 {[%clk 0:01:58.9]} 20. Bh3 {[%clk 0:02:02.2]} 20... Rcf7 {[%clk
0:01:43.6]} 21. Kh2 {[%clk 0:01:59.8]} 21... g5 {[%clk 0:01:41.2]} 22. Bg4
{[%clk 0:01:46.7]} 22... h6 {[%clk 0:01:39.3]} 23. Bh5 {[%clk 0:01:44.9]} 23...
Rc7 {[%clk 0:01:38.9]} 24. b4 {[%clk 0:01:43.5]} 24... Qd7 {[%clk 0:01:22.9]}
25. b5 {[%clk 0:01:42.4]} 25... Rfc8 {[%clk 0:01:20.9]} 26. a5 {[%clk
0:01:40.7]} 26... d5 {[%clk 0:01:06.2]} 27. axb6 {[%clk 0:01:33.8]} 27... axb6
{[%clk 0:01:03.1]} 28. exd5 {[%clk 0:01:32.4]} 28... Bxd5 {[%clk 0:01:02.6]} 29.
cxd5 {[%clk 0:01:25.7]} 29... Rc2 {[%clk 0:01:01]} 30. Be2 {[%clk 0:01:25.6]}
30... e4 {[%clk 0:00:53.1]} 31. Rad1 {[%clk 0:01:17]} 31... Rb2 {[%clk
0:00:36.4]} 32. dxe4 {[%clk 0:01:07.3]} 32... Rcc2 {[%clk 0:00:34.3]} 33. Rfe1
{[%clk 0:01:07.2]} 33... Qd6 {[%clk 0:00:26.3]} 34. hxg5 {[%clk 0:01:05]} 34...
hxg5 {[%clk 0:00:24.6]} 35. Kg1 {[%clk 0:00:58.3]} 35... Qa3 {[%clk 0:00:14.7]}
36. Rxd4 {[%clk 0:00:55]} 36... Qa2 {[%clk 0:00:14.2]} 37. Kf1 {[%clk
0:00:54.2]} 37... Rxb5 {[%clk 0:00:06.1]} 38. d6 {[%clk 0:00:52.6]} 38... Rb1
{[%clk 0:00:01.8]} 39. d7 {[%clk 0:00:50.7]} 39... Rxe1+ {[%clk 0:00:02.1]} 40.
Qxe1 {[%clk 0:00:51]} 40... Rxe2 {[%clk 0:00:02.3]} 41. Qxe2 {[%clk 0:00:50.3]}
41... Qa1+ {[%clk 0:00:02.9]} 42. Qd1 {[%clk 0:00:50.1]} 42... Qxd4 {[%clk
0:00:03.8]} 43. Qxd4 {[%clk 0:00:49.7]} 1-0

[Event "*** Titled Tuesday Blitz"]
[Site "Chess.com"]
[Date "2020.11.24"]
[Round "5"]
[White "AsaHoffmann"]
[Black "PriSachu"]
[Result "0-1"]
[WhiteElo "2385"]
[BlackElo "2534"]
[TimeControl "180+1"]
[EndTime "11:11:33 PST"]
[Termination "PriSachu won by resignation"]

1. d4 {[%clk 0:02:55.9]} 1... Nf6 {[%clk 0:02:55]} 2. Bg5 {[%clk 0:02:49.8]}
2... Ne4 {[%clk 0:02:53.9]} 3. Bf4 {[%clk 0:02:49.4]} 3... c5 {[%clk 0:02:51.4]}
4. f3 {[%clk 0:02:48.5]} 4... Qa5+ {[%clk 0:02:39.3]} 5. c3 {[%clk 0:02:47.4]}
5... Nf6 {[%clk 0:02:39.3]} 6. d5 {[%clk 0:02:43]} 6... Qb6 {[%clk 0:02:38]} 7.
e4 {[%clk 0:02:42.3]} 7... Qxb2 {[%clk 0:02:32.3]} 8. Nd2 {[%clk 0:02:41.5]}
8... Qxc3 {[%clk 0:02:22.4]} 9. Bc7 {[%clk 0:02:40.6]} 9... d6 {[%clk
0:02:11.8]} 10. Rb1 {[%clk 0:02:38.9]} 10... Nbd7 {[%clk 0:01:53.5]} 11. Rb3
{[%clk 0:02:31.8]} 11... Qe5 {[%clk 0:01:45.7]} 12. Ba5 {[%clk 0:02:30.8]} 12...
Qh5 {[%clk 0:01:12.4]} 13. Be2 {[%clk 0:02:27.5]} 13... Qh6 {[%clk 0:01:10.4]}
14. Nh3 {[%clk 0:02:10.9]} 14... g5 {[%clk 0:01:08.1]} 15. Nf2 {[%clk
0:02:05.2]} 15... Ne5 {[%clk 0:01:07.1]} 16. Bc3 {[%clk 0:02:00.6]} 16... Nfd7
{[%clk 0:00:58.5]} 17. Bb5 {[%clk 0:01:53.5]} 17... Bg7 {[%clk 0:00:53.8]} 18.
Bxe5 {[%clk 0:01:49]} 18... Bxe5 {[%clk 0:00:53.6]} 19. Ng4 {[%clk 0:01:48.1]}
19... Qg7 {[%clk 0:00:53.7]} 20. Bxd7+ {[%clk 0:01:42.6]} 20... Bxd7 {[%clk
0:00:47.3]} 21. Nc4 {[%clk 0:01:40.3]} 21... Bxg4 {[%clk 0:00:44.2]} 22. fxg4
{[%clk 0:01:37.3]} 22... Bc3+ {[%clk 0:00:34.8]} 23. Ke2 {[%clk 0:01:34.6]}
23... O-O {[%clk 0:00:32.6]} 24. Qd3 {[%clk 0:01:27.1]} 24... Bd4 {[%clk
0:00:30.1]} 25. Rxb7 {[%clk 0:01:25.5]} 25... Rfb8 {[%clk 0:00:21.8]} 26. Rhb1
{[%clk 0:01:24.4]} 26... Rxb7 {[%clk 0:00:19.7]} 27. Rxb7 {[%clk 0:01:23.7]}
27... Qf6 {[%clk 0:00:19]} 28. Qf3 {[%clk 0:01:20.9]} 28... Kg7 {[%clk
0:00:19.1]} 29. Kd3 {[%clk 0:01:15.8]} 29... Qxf3+ {[%clk 0:00:18.2]} 30. gxf3
{[%clk 0:01:15.5]} 30... Kf6 {[%clk 0:00:19.1]} 31. a4 {[%clk 0:01:12.9]} 31...
a6 {[%clk 0:00:18.6]} 32. Na5 {[%clk 0:01:12.4]} 32... h5 {[%clk 0:00:17.4]} 33.
h3 {[%clk 0:01:11.9]} 33... hxg4 {[%clk 0:00:16.2]} 34. hxg4 {[%clk 0:01:11.7]}
34... Rh8 {[%clk 0:00:17]} 35. Nc6 {[%clk 0:01:11.2]} 35... Rh3 {[%clk
0:00:17.4]} 36. Nxd4 {[%clk 0:01:07.4]} 36... cxd4 {[%clk 0:00:18.3]} 37. Kxd4
{[%clk 0:01:06.5]} 37... Rxf3 {[%clk 0:00:18.7]} 38. Ra7 {[%clk 0:01:06.2]}
38... Rg3 {[%clk 0:00:17.9]} 39. Rxa6 {[%clk 0:01:05.8]} 39... Rxg4 {[%clk
0:00:18.4]} 40. Ra8 {[%clk 0:01:05.4]} 40... Rg1 {[%clk 0:00:18.4]} 41. a5
{[%clk 0:01:05.1]} 41... Ra1 {[%clk 0:00:15.7]} 42. a6 {[%clk 0:01:04.7]} 42...
g4 {[%clk 0:00:15.8]} 43. a7 {[%clk 0:01:03]} 43... g3 {[%clk 0:00:15.6]} 44.
Rg8 {[%clk 0:00:58.4]} 44... Rxa7 {[%clk 0:00:16]} 45. Rxg3 {[%clk 0:00:57.7]}
45... Ra4+ {[%clk 0:00:16]} 46. Ke3 {[%clk 0:00:56.9]} 46... Ra3+ {[%clk
0:00:16.3]} 47. Kf4 {[%clk 0:00:56.8]} 47... Rxg3 {[%clk 0:00:16.4]} 48. Kxg3
{[%clk 0:00:56.7]} 48... Ke5 {[%clk 0:00:16.9]} 49. Kf3 {[%clk 0:00:56.8]} 49...
f5 {[%clk 0:00:17.4]} 50. exf5 {[%clk 0:00:55.3]} 50... Kxf5 {[%clk 0:00:18.3]}
51. Ke3 {[%clk 0:00:54.4]} 51... Ke5 {[%clk 0:00:19.2]} 0-1

[Event "*** Titled Tuesday Blitz"]
[Site "Chess.com"]
[Date "2020.11.24"]
[Round "5"]
[White "politeplayer"]
[Black "Chuchofrio1"]
[Result "1/2-1/2"]
[WhiteElo "2244"]
[BlackElo "2393"]
[TimeControl "180+1"]
[EndTime "11:11:33 PST"]
[Termination "Game drawn by agreement"]

1. d4 {[%clk 0:03:00.9]} 1... d5 {[%clk 0:02:39.9]} 2. e4 {[%clk 0:02:57.1]}
2... dxe4 {[%clk 0:02:38.6]} 3. Nc3 {[%clk 0:02:56.6]} 3... Nf6 {[%clk
0:02:38.6]} 4. f3 {[%clk 0:02:56.8]} 4... exf3 {[%clk 0:02:38.4]} 5. Nxf3 {[%clk
0:02:56.7]} 5... g6 {[%clk 0:02:38.9]} 6. Bf4 {[%clk 0:02:54.2]} 6... c6 {[%clk
0:02:37.8]} 7. Qd2 {[%clk 0:02:54.3]} 7... h5 {[%clk 0:02:36.2]} 8. O-O-O {[%clk
0:02:52.8]} 8... Bf5 {[%clk 0:02:36.2]} 9. Bc4 {[%clk 0:02:49.3]} 9... e6 {[%clk
0:02:34.5]} 10. Rhe1 {[%clk 0:02:45.2]} 10... Be7 {[%clk 0:02:31.5]} 11. Kb1
{[%clk 0:02:32.3]} 11... Nbd7 {[%clk 0:02:30.2]} 12. h3 {[%clk 0:02:18.3]} 12...
Nb6 {[%clk 0:02:29.8]} 13. Bb3 {[%clk 0:02:14]} 13... Nbd5 {[%clk 0:02:29.7]}
14. Be5 {[%clk 0:02:04.5]} 14... Nxc3+ {[%clk 0:02:15.9]} 15. Qxc3 {[%clk
0:02:03.3]} 15... a5 {[%clk 0:02:11.2]} 16. d5 {[%clk 0:01:57]} 16... cxd5
{[%clk 0:01:57]} 17. Ba4+ {[%clk 0:01:30.5]} 17... Kf8 {[%clk 0:01:56.4]} 18.
Nd4 {[%clk 0:01:22.9]} 18... Bb4 {[%clk 0:01:53.2]} 19. Qg3 {[%clk 0:00:56.6]}
19... Bxe1 {[%clk 0:01:31.5]} 20. Rxe1 {[%clk 0:00:56.6]} 20... Rg8 {[%clk
0:01:27.6]} 21. Nxf5 {[%clk 0:00:45.8]} 21... exf5 {[%clk 0:01:24.6]} 22. Qc3
{[%clk 0:00:04.2]} 22... Ne4 {[%clk 0:01:21.3]} 23. Rxe4 {[%clk 0:00:03]}
1/2-1/2

[Event "*** Titled Tuesday Blitz"]
[Site "Chess.com"]
[Date "2020.11.24"]
[Round "5"]
[White "RaneshRatnesan"]
[Black "Andrii_Prydun"]
[Result "0-1"]
[WhiteElo "2125"]
[BlackElo "2348"]
[TimeControl "180+1"]
[EndTime "11:11:33 PST"]
[Termination "Andrii_Prydun won by resignation"]

1. d4 {[%clk 0:03:00.9]} 1... d5 {[%clk 0:02:55.1]} 2. c4 {[%clk 0:03:00.6]}
2... c6 {[%clk 0:02:32.9]} 3. Nf3 {[%clk 0:02:56.2]} 3... Nf6 {[%clk 0:02:32.2]}
4. Nc3 {[%clk 0:02:54.6]} 4... e6 {[%clk 0:02:31.3]} 5. e3 {[%clk 0:02:49.5]}
5... Nbd7 {[%clk 0:02:30.9]} 6. Qc2 {[%clk 0:02:45.6]} 6... Bd6 {[%clk
0:02:29.8]} 7. Bd3 {[%clk 0:02:45]} 7... O-O {[%clk 0:02:28.5]} 8. cxd5 {[%clk
0:02:37.4]} 8... cxd5 {[%clk 0:02:27.5]} 9. a3 {[%clk 0:02:36.3]} 9... e5 {[%clk
0:02:24.9]} 10. dxe5 {[%clk 0:02:36.2]} 10... Nxe5 {[%clk 0:02:24.6]} 11. Nxe5
{[%clk 0:02:37.1]} 11... Bxe5 {[%clk 0:02:24.7]} 12. Ne2 {[%clk 0:02:31.6]}
12... Bg4 {[%clk 0:02:19.9]} 13. h3 {[%clk 0:02:29.9]} 13... Bh5 {[%clk
0:02:19.1]} 14. O-O {[%clk 0:02:20.4]} 14... Rc8 {[%clk 0:02:17]} 15. Qa4 {[%clk
0:02:20.6]} 15... Bb8 {[%clk 0:02:15.1]} 16. b4 {[%clk 0:02:04.2]} 16... Qd6
{[%clk 0:02:08.3]} 17. Ng3 {[%clk 0:02:03.6]} 17... Bg6 {[%clk 0:02:07.3]} 18.
Bxg6 {[%clk 0:01:57.7]} 18... hxg6 {[%clk 0:02:06.2]} 19. f4 {[%clk 0:01:47.7]}
19... Rfe8 {[%clk 0:02:00.1]} 20. Qb3 {[%clk 0:01:44.1]} 20... Qb6 {[%clk
0:01:58]} 21. Kh2 {[%clk 0:01:40.3]} 21... g5 {[%clk 0:01:47.5]} 22. Bd2 {[%clk
0:01:25]} 22... Rc4 {[%clk 0:01:26.9]} 23. Rac1 {[%clk 0:01:18]} 23... Qe6
{[%clk 0:01:22.5]} 24. Kh1 {[%clk 0:00:57.6]} 24... g4 {[%clk 0:01:18.1]} 25.
Kh2 {[%clk 0:00:56.3]} 25... g5 {[%clk 0:01:15.6]} 26. Rxc4 {[%clk 0:00:49.7]}
26... dxc4 {[%clk 0:01:14.4]} 27. Qc3 {[%clk 0:00:48.2]} 27... Nd5 {[%clk
0:01:13.1]} 28. Qxc4 {[%clk 0:00:41.1]} 28... Nxe3 {[%clk 0:01:13.4]} 29. Qxe6
{[%clk 0:00:26.3]} 29... Nxf1+ {[%clk 0:01:13.7]} 30. Nxf1 {[%clk 0:00:25.2]}
30... Rxe6 {[%clk 0:01:14.3]} 31. Kg1 {[%clk 0:00:20.7]} 31... Bxf4 {[%clk
0:01:12.7]} 32. Kf2 {[%clk 0:00:21.6]} 32... Rd6 {[%clk 0:01:01.9]} 33. Bc3
{[%clk 0:00:20.6]} 33... Rd3 {[%clk 0:01:00.9]} 34. Bf6 {[%clk 0:00:19.5]} 34...
Rxa3 {[%clk 0:01:00.2]} 35. hxg4 {[%clk 0:00:19.4]} 35... Rb3 {[%clk 0:00:58.3]}
36. Be7 {[%clk 0:00:18.6]} 36... b6 {[%clk 0:00:58.2]} 37. g3 {[%clk 0:00:16.9]}
37... Be5 {[%clk 0:00:57.6]} 38. Bxg5 {[%clk 0:00:16.9]} 38... a5 {[%clk
0:00:56.4]} 39. bxa5 {[%clk 0:00:16.7]} 39... bxa5 {[%clk 0:00:56.8]} 40. Nd2
{[%clk 0:00:17.1]} 40... a4 {[%clk 0:00:53.6]} 41. Nc4 {[%clk 0:00:16.5]} 41...
a3 {[%clk 0:00:52.3]} 42. Nxa3 {[%clk 0:00:12.4]} 42... Rxa3 {[%clk 0:00:53.2]}
43. Bf4 {[%clk 0:00:13]} 43... Bxf4 {[%clk 0:00:50]} 44. gxf4 {[%clk 0:00:13.9]}
44... Kf8 {[%clk 0:00:48.5]} 45. Kg2 {[%clk 0:00:14.2]} 45... f5 {[%clk
0:00:47.1]} 46. gxf5 {[%clk 0:00:13.6]} 0-1

[Event "*** Titled Tuesday Blitz"]
[Site "Chess.com"]
[Date "2020.11.24"]
[Round "5"]
[White "theblitzchamp"]
[Black "Triumphmate"]
[Result "1-0"]
[WhiteElo "2608"]
[BlackElo "2428"]
[TimeControl "180+1"]
[EndTime "11:11:34 PST"]
[Termination "theblitzchamp won by checkmate"]

1. e4 {[%clk 0:03:00.9]} 1... d5 {[%clk 0:03:00]} 2. exd5 {[%clk 0:02:59.3]}
2... Nf6 {[%clk 0:03:00.3]} 3. c4 {[%clk 0:02:52.5]} 3... c6 {[%clk 0:02:59.9]}
4. dxc6 {[%clk 0:02:53.4]} 4... Nxc6 {[%clk 0:03:00.8]} 5. Nf3 {[%clk
0:02:53.7]} 5... e5 {[%clk 0:03:00.7]} 6. d3 {[%clk 0:02:52.2]} 6... Bg4 {[%clk
0:02:59.8]} 7. Be2 {[%clk 0:02:51.9]} 7... Be7 {[%clk 0:02:58.2]} 8. O-O {[%clk
0:02:51.9]} 8... O-O {[%clk 0:02:58.5]} 9. Nc3 {[%clk 0:02:52.5]} 9... h6 {[%clk
0:02:55.3]} 10. b3 {[%clk 0:02:44.4]} 10... a6 {[%clk 0:02:53]} 11. Bb2 {[%clk
0:02:44.4]} 11... Qc7 {[%clk 0:02:50.4]} 12. Ne4 {[%clk 0:02:41.8]} 12... Nxe4
{[%clk 0:02:39.3]} 13. dxe4 {[%clk 0:02:40.9]} 13... Rad8 {[%clk 0:02:38]} 14.
Qc1 {[%clk 0:02:30.2]} 14... Bxf3 {[%clk 0:02:35.6]} 15. Bxf3 {[%clk 0:02:30.4]}
15... Nd4 {[%clk 0:02:35.9]} 16. Bg4 {[%clk 0:02:13.8]} 16... Bc5 {[%clk
0:02:27]} 17. Kh1 {[%clk 0:02:10.6]} 17... a5 {[%clk 0:02:21.2]} 18. Qc3 {[%clk
0:02:04]} 18... b6 {[%clk 0:02:16.4]} 19. Rad1 {[%clk 0:02:03.6]} 19... Rd6
{[%clk 0:02:15.2]} 20. Qg3 {[%clk 0:01:57.3]} 20... Qe7 {[%clk 0:01:58.7]} 21.
f4 {[%clk 0:01:47.5]} 21... exf4 {[%clk 0:01:57.7]} 22. Qxf4 {[%clk 0:01:46.6]}
22... Rf6 {[%clk 0:01:31.3]} 23. Bf5 {[%clk 0:01:16.1]} 23... Rd8 {[%clk
0:01:04.5]} 24. Bxd4 {[%clk 0:01:01.2]} 24... Rxd4 {[%clk 0:01:00.7]} 25. Qb8+
{[%clk 0:00:23]} 25... Qf8 {[%clk 0:00:48.6]} 26. Qc7 {[%clk 0:00:23.2]} 26...
g6 {[%clk 0:00:36.5]} 27. Bg4 {[%clk 0:00:18.5]} 27... Rxd1 {[%clk 0:00:28.4]}
28. Rxd1 {[%clk 0:00:18]} 28... h5 {[%clk 0:00:27]} 29. Bf3 {[%clk 0:00:17.8]}
29... Bd6 {[%clk 0:00:23.5]} 30. Qd7 {[%clk 0:00:16.7]} 30... Be5 {[%clk
0:00:20.5]} 31. h3 {[%clk 0:00:16.4]} 31... Qc5 {[%clk 0:00:20.6]} 32. Qe8+
{[%clk 0:00:15.2]} 32... Kg7 {[%clk 0:00:21.1]} 33. Rd8 {[%clk 0:00:15.7]} 33...
Rxf3 {[%clk 0:00:17.8]} 34. Qh8# {[%clk 0:00:15.7]} 1-0

[Event "*** Titled Tuesday Blitz"]
[Site "Chess.com"]
[Date "2020.11.24"]
[Round "5"]
[White "Gusarov91"]
[Black "ajdemipopushi"]
[Result "1-0"]
[WhiteElo "2669"]
[BlackElo "2446"]
[TimeControl "180+1"]
[EndTime "11:11:36 PST"]
[Termination "Gusarov91 won on time"]

1. d4 {[%clk 0:02:56.5]} 1... Nf6 {[%clk 0:02:58]} 2. Nf3 {[%clk 0:02:55.7]}
2... c5 {[%clk 0:02:58]} 3. d5 {[%clk 0:02:55.7]} 3... b5 {[%clk 0:02:58.2]} 4.
Bg5 {[%clk 0:02:54.5]} 4... Qb6 {[%clk 0:02:57.4]} 5. a4 {[%clk 0:02:54]} 5...
b4 {[%clk 0:02:57.2]} 6. a5 {[%clk 0:02:54]} 6... Qd6 {[%clk 0:02:56.9]} 7. c4
{[%clk 0:02:50.8]} 7... g6 {[%clk 0:02:49.8]} 8. Nbd2 {[%clk 0:02:48.6]} 8... h6
{[%clk 0:02:49]} 9. Bh4 {[%clk 0:02:47.7]} 9... Qc7 {[%clk 0:02:29]} 10. e4
{[%clk 0:02:41]} 10... d6 {[%clk 0:02:25.7]} 11. Bxf6 {[%clk 0:02:33.3]} 11...
exf6 {[%clk 0:02:25.5]} 12. Bd3 {[%clk 0:02:34.2]} 12... Bg7 {[%clk 0:02:24.7]}
13. O-O {[%clk 0:02:33.7]} 13... O-O {[%clk 0:02:18.7]} 14. Qc2 {[%clk
0:02:32.1]} 14... Nd7 {[%clk 0:02:09.7]} 15. Rfe1 {[%clk 0:02:31.7]} 15... Ne5
{[%clk 0:02:04.3]} 16. Be2 {[%clk 0:02:29]} 16... f5 {[%clk 0:02:02.8]} 17. Nxe5
{[%clk 0:02:29.3]} 17... Bxe5 {[%clk 0:02:02.4]} 18. Bd3 {[%clk 0:02:22.2]}
18... fxe4 {[%clk 0:02:01.9]} 19. Bxe4 {[%clk 0:02:20.6]} 19... b3 {[%clk
0:01:56.1]} 20. Nxb3 {[%clk 0:02:15.7]} 20... Rb8 {[%clk 0:01:55.9]} 21. Re3
{[%clk 0:02:10.8]} 21... Bd7 {[%clk 0:01:32.1]} 22. Ra3 {[%clk 0:02:08.8]} 22...
Kg7 {[%clk 0:01:24.2]} 23. Bd3 {[%clk 0:02:05.7]} 23... Rfe8 {[%clk 0:01:18.1]}
24. g3 {[%clk 0:02:04.4]} 24... Bf6 {[%clk 0:01:10.9]} 25. Rxe8 {[%clk
0:01:55.5]} 25... Rxe8 {[%clk 0:01:10.2]} 26. Ra1 {[%clk 0:01:54.2]} 26... Bh3
{[%clk 0:01:03.8]} 27. Nd2 {[%clk 0:01:48.7]} 27... Bd4 {[%clk 0:00:49.9]} 28.
Nf3 {[%clk 0:01:47.3]} 28... Bf6 {[%clk 0:00:49.6]} 29. Bf1 {[%clk 0:01:43.4]}
29... Bxf1 {[%clk 0:00:45.1]} 30. Kxf1 {[%clk 0:01:42.6]} 30... Rb8 {[%clk
0:00:40.6]} 31. Ra2 {[%clk 0:01:42.3]} 31... Rb4 {[%clk 0:00:39.7]} 32. b3
{[%clk 0:01:41]} 32... Qb8 {[%clk 0:00:38]} 33. Ra3 {[%clk 0:01:36.6]} 33... a6
{[%clk 0:00:36.6]} 34. Kg2 {[%clk 0:01:36.3]} 34... h5 {[%clk 0:00:36.2]} 35. h4
{[%clk 0:01:36]} 35... Qb7 {[%clk 0:00:34.5]} 36. Ne1 {[%clk 0:01:34.8]} 36...
Qd7 {[%clk 0:00:32.5]} 37. Nd3 {[%clk 0:01:33.9]} 37... Rb8 {[%clk 0:00:31.5]}
38. Nf4 {[%clk 0:01:32.2]} 38... Be5 {[%clk 0:00:30.2]} 39. Nd3 {[%clk
0:01:28.3]} 39... Bd4 {[%clk 0:00:29.4]} 40. Qe2 {[%clk 0:01:24.7]} 40... Re8
{[%clk 0:00:27.6]} 41. Qf3 {[%clk 0:01:25.1]} 41... f5 {[%clk 0:00:16.4]} 42.
Nf4 {[%clk 0:01:17.3]} 42... Re4 {[%clk 0:00:15.9]} 43. Ne6+ {[%clk 0:01:17.1]}
43... Kg8 {[%clk 0:00:11.4]} 44. Ra2 {[%clk 0:01:13.3]} 44... Bf6 {[%clk
0:00:06.9]} 45. Re2 {[%clk 0:01:12.9]} 45... Rxe2 {[%clk 0:00:06.2]} 46. Qxe2
{[%clk 0:01:13.8]} 46... Bd8 {[%clk 0:00:06]} 47. Nf4 {[%clk 0:01:11.2]} 47...
Kf7 {[%clk 0:00:04.3]} 48. Qb2 {[%clk 0:01:08.6]} 48... Bxa5 {[%clk 0:00:02]}
49. Qh8 {[%clk 0:01:08.6]} 1-0

[Event "*** Titled Tuesday Blitz"]
[Site "Chess.com"]
[Date "2020.11.24"]
[Round "5"]
[White "GregShahade"]
[Black "louis198"]
[Result "0-1"]
[WhiteElo "2723"]
[BlackElo "2550"]
[TimeControl "180+1"]
[EndTime "11:11:39 PST"]
[Termination "louis198 won by checkmate"]

1. e4 {[%clk 0:03:00.9]} 1... e6 {[%clk 0:03:00.3]} 2. d4 {[%clk 0:02:58.1]}
2... d5 {[%clk 0:03:01.2]} 3. Nd2 {[%clk 0:02:57.6]} 3... Nc6 {[%clk 0:03:01]}
4. Ngf3 {[%clk 0:02:54.1]} 4... Nf6 {[%clk 0:03:01.2]} 5. e5 {[%clk 0:02:53]}
5... Nd7 {[%clk 0:03:01.8]} 6. Be2 {[%clk 0:02:50.8]} 6... f6 {[%clk 0:03:01.4]}
7. exf6 {[%clk 0:02:50.6]} 7... Qxf6 {[%clk 0:03:02.3]} 8. Nf1 {[%clk
0:02:49.3]} 8... Bd6 {[%clk 0:03:02.8]} 9. Ne3 {[%clk 0:02:48.5]} 9... O-O
{[%clk 0:03:02.6]} 10. O-O {[%clk 0:02:48.4]} 10... Ne7 {[%clk 0:02:57.5]} 11.
c4 {[%clk 0:02:40.5]} 11... c6 {[%clk 0:02:57.4]} 12. Bd3 {[%clk 0:02:19.2]}
12... Bf4 {[%clk 0:02:11.9]} 13. Ng4 {[%clk 0:01:45.8]} 13... Qf7 {[%clk
0:02:11]} 14. Ng5 {[%clk 0:01:41.8]} 14... Bxg5 {[%clk 0:02:08.7]} 15. Bxg5
{[%clk 0:01:42.7]} 15... Nf5 {[%clk 0:02:04.2]} 16. Qf3 {[%clk 0:01:08.9]} 16...
Nxd4 {[%clk 0:01:11.2]} 17. Qh3 {[%clk 0:01:08.8]} 17... Nf5 {[%clk 0:01:10.6]}
18. Rae1 {[%clk 0:01:09]} 18... Nc5 {[%clk 0:01:09.4]} 19. Ne5 {[%clk
0:01:04.8]} 19... Qc7 {[%clk 0:00:54.7]} 20. Bb1 {[%clk 0:01:02.2]} 20... a5
{[%clk 0:00:53.7]} 21. g4 {[%clk 0:00:56.9]} 21... Nh6 {[%clk 0:00:43.4]} 22.
Bxh6 {[%clk 0:00:51.2]} 22... gxh6 {[%clk 0:00:42.6]} 23. Qxh6 {[%clk
0:00:51.7]} 23... Qg7 {[%clk 0:00:43.2]} 24. Qe3 {[%clk 0:00:44.1]} 24... Nd7
{[%clk 0:00:42.2]} 25. Nxd7 {[%clk 0:00:33]} 25... Bxd7 {[%clk 0:00:41.5]} 26.
b3 {[%clk 0:00:26.4]} 26... Rae8 {[%clk 0:00:40]} 27. h3 {[%clk 0:00:25.4]}
27... e5 {[%clk 0:00:40.2]} 28. Qg3 {[%clk 0:00:24]} 28... Rf4 {[%clk
0:00:39.3]} 29. cxd5 {[%clk 0:00:15.9]} 29... cxd5 {[%clk 0:00:38]} 30. Bd3
{[%clk 0:00:16.2]} 30... Bxg4 {[%clk 0:00:32.1]} 31. Qxf4 {[%clk 0:00:10.5]}
31... exf4 {[%clk 0:00:31.6]} 32. Rxe8+ {[%clk 0:00:10.7]} 32... Kf7 {[%clk
0:00:31.9]} 33. hxg4 {[%clk 0:00:01.2]} 33... Qxg4+ {[%clk 0:00:31.6]} 34. Kh2
{[%clk 0:00:01.9]} 34... f3 {[%clk 0:00:26.1]} 35. Rg1 {[%clk 0:00:02]} 35...
Qh4# {[%clk 0:00:25.7]} 0-1

[Event "*** Titled Tuesday Blitz"]
[Site "Chess.com"]
[Date "2020.11.24"]
[Round "5"]
[White "Lysiak_Poltorak"]
[Black "FMOlexandrProhorov"]
[Result "0-1"]
[WhiteElo "2343"]
[BlackElo "2191"]
[TimeControl "180+1"]
[EndTime "11:11:40 PST"]
[Termination "FMOlexandrProhorov won by resignation"]

1. d4 {[%clk 0:03:00.9]} 1... g6 {[%clk 0:02:59.3]} 2. c4 {[%clk 0:03:00.9]}
2... Bg7 {[%clk 0:02:58.3]} 3. Nc3 {[%clk 0:03:01.4]} 3... c5 {[%clk 0:02:58.6]}
4. d5 {[%clk 0:03:01.3]} 4... Bxc3+ {[%clk 0:02:57.5]} 5. bxc3 {[%clk
0:03:02.2]} 5... f5 {[%clk 0:02:57.4]} 6. h4 {[%clk 0:02:06.6]} 6... Qa5 {[%clk
0:02:58.3]} 7. Qc2 {[%clk 0:02:04.3]} 7... Nf6 {[%clk 0:02:57.1]} 8. e3 {[%clk
0:01:52.4]} 8... d6 {[%clk 0:02:55.7]} 9. Bd2 {[%clk 0:01:51.6]} 9... Nbd7
{[%clk 0:02:54.5]} 10. f4 {[%clk 0:01:50.4]} 10... Nb6 {[%clk 0:02:53.7]} 11.
Nf3 {[%clk 0:01:40.4]} 11... Bd7 {[%clk 0:02:50.5]} 12. Bd3 {[%clk 0:01:37.6]}
12... Qa4 {[%clk 0:02:39.9]} 13. Qb2 {[%clk 0:01:33.9]} 13... O-O-O {[%clk
0:02:34.8]} 14. O-O {[%clk 0:01:30.6]} 14... Nxc4 {[%clk 0:02:28.9]} 15. Bxc4
{[%clk 0:01:25]} 15... Qxc4 {[%clk 0:02:28.3]} 16. Rab1 {[%clk 0:01:24]} 16...
b6 {[%clk 0:02:26.2]} 17. a4 {[%clk 0:01:10.1]} 17... Qxd5 {[%clk 0:02:11.3]}
18. a5 {[%clk 0:01:07.9]} 18... b5 {[%clk 0:02:11.5]} 19. a6 {[%clk 0:01:01.8]}
19... Bc6 {[%clk 0:02:03.5]} 20. Rfc1 {[%clk 0:00:50.9]} 20... c4 {[%clk
0:01:24.1]} 21. Be1 {[%clk 0:00:45]} 21... e5 {[%clk 0:01:20.3]} 22. fxe5 {[%clk
0:00:42.8]} 22... dxe5 {[%clk 0:01:20.3]} 23. Bg3 {[%clk 0:00:42.8]} 23... Rhe8
{[%clk 0:01:15.2]} 24. Kh2 {[%clk 0:00:18.5]} 24... Ng4+ {[%clk 0:01:12.4]} 25.
Kh3 {[%clk 0:00:16.4]} 25... Nxe3 {[%clk 0:01:10]} 26. Re1 {[%clk 0:00:16.3]}
26... f4 {[%clk 0:01:09.5]} 27. Bf2 {[%clk 0:00:14.7]} 27... e4 {[%clk
0:00:43.8]} 28. Nd4 {[%clk 0:00:12.3]} 28... Bd7+ {[%clk 0:00:41.3]} 29. Kh2
{[%clk 0:00:12.5]} 29... Nxg2 {[%clk 0:00:37.8]} 30. Kxg2 {[%clk 0:00:11.2]}
30... e3+ {[%clk 0:00:38.1]} 31. Nf3 {[%clk 0:00:11.6]} 31... Bc6 {[%clk
0:00:35.2]} 32. Qe2 {[%clk 0:00:11.3]} 32... exf2 {[%clk 0:00:31.1]} 33. Qxf2
{[%clk 0:00:12.2]} 33... Re3 {[%clk 0:00:17.7]} 34. Rxe3 {[%clk 0:00:11.9]}
34... fxe3 {[%clk 0:00:18.6]} 35. Qxe3 {[%clk 0:00:12.8]} 35... Re8 {[%clk
0:00:18.8]} 36. Rf1 {[%clk 0:00:13.3]} 0-1